[Event "*** Titled Tuesday Blitz"]
[Site "Chess.com"]
[Date "2020.03.03"]
[Round "9"]
[White "wonderfultime"]
[Black "AtabayevSaparmyrat"]
[Result "1-0"]
[WhiteElo "3020"]
[BlackElo "2791"]
[TimeControl "180+1"]
[EndTime "10:43:59 PST"]
[Termination "wonderfultime won by checkmate"]

1. d4 {[%clk 0:02:55.5]} 1... Nf6 {[%clk 0:03:00]} 2. Nf3 {[%clk 0:02:55.3]}
2... g6 {[%clk 0:02:58.7]} 3. Bg5 {[%clk 0:02:55.5]} 3... Bg7 {[%clk 0:02:58.6]}
4. Nbd2 {[%clk 0:02:55.2]} 4... O-O {[%clk 0:02:58.8]} 5. e3 {[%clk 0:02:43]}
5... d6 {[%clk 0:02:57.6]} 6. Be2 {[%clk 0:02:37.6]} 6... Nbd7 {[%clk 0:02:56]}
7. O-O {[%clk 0:02:37.9]} 7... b6 {[%clk 0:02:51.2]} 8. a4 {[%clk 0:02:37.5]}
8... a5 {[%clk 0:02:50.5]} 9. h3 {[%clk 0:02:37.6]} 9... Ba6 {[%clk 0:02:41.4]}
10. Bxa6 {[%clk 0:02:34]} 10... Rxa6 {[%clk 0:02:42.3]} 11. e4 {[%clk
0:02:34.9]} 11... Ra8 {[%clk 0:02:34.7]} 12. c3 {[%clk 0:02:30.5]} 12... e5
{[%clk 0:02:27.3]} 13. Re1 {[%clk 0:02:18.3]} 13... h6 {[%clk 0:02:27.1]} 14.
Bh4 {[%clk 0:02:16.3]} 14... Re8 {[%clk 0:02:22]} 15. Qc2 {[%clk 0:02:14.4]}
15... Qc8 {[%clk 0:02:19.6]} 16. Bg3 {[%clk 0:02:07.3]} 16... Qb7 {[%clk
0:02:12.9]} 17. Bh2 {[%clk 0:01:59.1]} 17... Rac8 {[%clk 0:01:54.2]} 18. dxe5
{[%clk 0:01:53.2]} 18... Nxe5 {[%clk 0:01:46.2]} 19. Nd4 {[%clk 0:01:53.1]}
19... Ned7 {[%clk 0:01:40]} 20. Re2 {[%clk 0:01:41]} 20... Re7 {[%clk
0:01:36.9]} 21. Rae1 {[%clk 0:01:39.3]} 21... Rce8 {[%clk 0:01:37.2]} 22. Nb5
{[%clk 0:01:25.2]} 22... Nc5 {[%clk 0:01:36.4]} 23. f3 {[%clk 0:01:21.7]} 23...
Nfd7 {[%clk 0:01:18.2]} 24. b4 {[%clk 0:01:16.9]} 24... Na6 {[%clk 0:01:10]} 25.
bxa5 {[%clk 0:01:14.9]} 25... bxa5 {[%clk 0:01:10.9]} 26. Nc4 {[%clk 0:01:15.5]}
26... Ne5 {[%clk 0:01:05.4]} 27. Ne3 {[%clk 0:01:09.3]} 27... Rd7 {[%clk
0:00:52.8]} 28. Kh1 {[%clk 0:01:09.2]} 28... c6 {[%clk 0:00:51.5]} 29. Nd4
{[%clk 0:01:08]} 29... Rde7 {[%clk 0:00:39.7]} 30. f4 {[%clk 0:00:56.5]} 30...
Nd7 {[%clk 0:00:39.2]} 31. Nc4 {[%clk 0:00:56.9]} 31... Qc7 {[%clk 0:00:38.3]}
32. e5 {[%clk 0:00:55]} 32... dxe5 {[%clk 0:00:34.3]} 33. fxe5 {[%clk
0:00:55.9]} 33... Nxe5 {[%clk 0:00:28.1]} 34. Nxe5 {[%clk 0:00:34.2]} 34... Bxe5
{[%clk 0:00:25.1]} 35. Rxe5 {[%clk 0:00:34.7]} 35... Rxe5 {[%clk 0:00:24.6]} 36.
Rxe5 {[%clk 0:00:35.2]} 36... Rxe5 {[%clk 0:00:25.5]} 37. Nf3 {[%clk 0:00:36.1]}
37... f6 {[%clk 0:00:14.9]} 38. Nxe5 {[%clk 0:00:33.7]} 38... fxe5 {[%clk
0:00:14.5]} 39. Qxg6+ {[%clk 0:00:33.4]} 39... Kf8 {[%clk 0:00:12.7]} 40. Qxh6+
{[%clk 0:00:32.4]} 40... Ke7 {[%clk 0:00:12.8]} 41. Qg7+ {[%clk 0:00:31.4]}
41... Ke6 {[%clk 0:00:13.2]} 42. Qg6+ {[%clk 0:00:30.1]} 42... Kd5 {[%clk
0:00:12.7]} 43. Qd3+ {[%clk 0:00:30.5]} 43... Ke6 {[%clk 0:00:12.4]} 44. Qc4+
{[%clk 0:00:30.2]} 44... Kf6 {[%clk 0:00:12.3]} 45. Qxa6 {[%clk 0:00:30.4]}
45... Qd6 {[%clk 0:00:12.9]} 46. Qf1+ {[%clk 0:00:30.3]} 46... Ke6 {[%clk
0:00:13.1]} 47. Bg1 {[%clk 0:00:31.2]} 47... Qd5 {[%clk 0:00:12.6]} 48. h4
{[%clk 0:00:31.5]} 48... e4 {[%clk 0:00:12.8]} 49. Qf4 {[%clk 0:00:30.4]} 49...
Qd3 {[%clk 0:00:11]} 50. Bd4 {[%clk 0:00:28.1]} 50... Kd5 {[%clk 0:00:09.8]} 51.
Qe5+ {[%clk 0:00:27.3]} 51... Kc4 {[%clk 0:00:10.3]} 52. Qe6# {[%clk 0:00:27.9]}
1-0

[Event "*** Titled Tuesday Blitz"]
[Site "Chess.com"]
[Date "2020.03.03"]
[Round "9"]
[White "inegrepus"]
[Black "Vyacheslav_N"]
[Result "0-1"]
[WhiteElo "2300"]
[BlackElo "2564"]
[TimeControl "180+1"]
[EndTime "10:44:00 PST"]
[Termination "Vyacheslav_N won by checkmate"]

1. d4 {[%clk 0:03:00.7]} 1... d5 {[%clk 0:02:50]} 2. c4 {[%clk 0:03:00.6]} 2...
c6 {[%clk 0:02:47.7]} 3. Nf3 {[%clk 0:03:00.3]} 3... Nf6 {[%clk 0:02:46.5]} 4.
e3 {[%clk 0:03:00.6]} 4... a6 {[%clk 0:02:40.9]} 5. b3 {[%clk 0:02:57.7]} 5...
Bf5 {[%clk 0:02:41.4]} 6. Bb2 {[%clk 0:02:57.6]} 6... h6 {[%clk 0:02:37.9]} 7.
Be2 {[%clk 0:02:56.2]} 7... Nbd7 {[%clk 0:02:38.5]} 8. O-O {[%clk 0:02:56.2]}
8... b5 {[%clk 0:02:39]} 9. Nbd2 {[%clk 0:02:52.1]} 9... g5 {[%clk 0:02:39.3]}
10. h3 {[%clk 0:02:48]} 10... Bg7 {[%clk 0:02:38.7]} 11. Ne5 {[%clk 0:02:44.9]}
11... Rc8 {[%clk 0:02:26.5]} 12. Rc1 {[%clk 0:02:41.7]} 12... Nxe5 {[%clk
0:02:23.8]} 13. dxe5 {[%clk 0:02:42.6]} 13... Ne4 {[%clk 0:02:24.7]} 14. Nf3
{[%clk 0:02:31.5]} 14... e6 {[%clk 0:02:11.1]} 15. Qd4 {[%clk 0:02:14.4]} 15...
c5 {[%clk 0:02:08.9]} 16. Qd1 {[%clk 0:02:03.1]} 16... dxc4 {[%clk 0:02:08.9]}
17. bxc4 {[%clk 0:02:00.3]} 17... Qxd1 {[%clk 0:02:08.6]} 18. Rfxd1 {[%clk
0:01:59.8]} 18... b4 {[%clk 0:02:09.5]} 19. g4 {[%clk 0:01:51.4]} 19... Bh7
{[%clk 0:02:07.9]} 20. Nd2 {[%clk 0:01:43.5]} 20... O-O {[%clk 0:02:06.1]} 21.
Nxe4 {[%clk 0:01:41.3]} 21... Bxe4 {[%clk 0:02:07]} 22. f3 {[%clk 0:01:39.6]}
22... Bc6 {[%clk 0:02:06.7]} 23. Rd6 {[%clk 0:01:38.1]} 23... a5 {[%clk
0:02:00.9]} 24. Rcd1 {[%clk 0:01:33.8]} 24... a4 {[%clk 0:01:59.6]} 25. f4
{[%clk 0:01:30.8]} 25... a3 {[%clk 0:01:49.5]} 26. Bc1 {[%clk 0:01:30.6]} 26...
Be4 {[%clk 0:01:41.1]} 27. Bd3 {[%clk 0:01:28]} 27... Bc6 {[%clk 0:01:40.9]} 28.
Kf2 {[%clk 0:01:24.5]} 28... Rfe8 {[%clk 0:01:40.5]} 29. Be2 {[%clk 0:01:20.1]}
29... Be4 {[%clk 0:01:33.1]} 30. Bf3 {[%clk 0:01:18.3]} 30... Bb1 {[%clk
0:01:31.1]} 31. R6d2 {[%clk 0:01:00.4]} 31... f6 {[%clk 0:01:06]} 32. Bxa3
{[%clk 0:00:57.6]} 32... Bg6 {[%clk 0:00:53.5]} 33. exf6 {[%clk 0:00:54.1]}
33... Bxf6 {[%clk 0:00:52.9]} 34. Bb2 {[%clk 0:00:53.2]} 34... Bc3 {[%clk
0:00:53.4]} 35. Bxc3 {[%clk 0:00:41.4]} 35... bxc3 {[%clk 0:00:54.3]} 36. Rd7
{[%clk 0:00:39.2]} 36... Rb8 {[%clk 0:00:53.3]} 37. f5 {[%clk 0:00:35.9]} 37...
exf5 {[%clk 0:00:51.8]} 38. Bd5+ {[%clk 0:00:30.8]} 38... Kh8 {[%clk 0:00:49.3]}
39. Rc1 {[%clk 0:00:23.9]} 39... fxg4 {[%clk 0:00:44.3]} 40. Rxc3 {[%clk
0:00:21.6]} 40... gxh3 {[%clk 0:00:43]} 41. e4 {[%clk 0:00:18.1]} 41... g4
{[%clk 0:00:42.1]} 42. Kg3 {[%clk 0:00:12.5]} 42... Rb2 {[%clk 0:00:40.7]} 43.
Kxg4 {[%clk 0:00:08.4]} 43... h2 {[%clk 0:00:40.8]} 44. Rh3 {[%clk 0:00:08]}
44... h5+ {[%clk 0:00:39.7]} 45. Kg5 {[%clk 0:00:06.8]} 45... Rg2+ {[%clk
0:00:37.1]} 46. Kh6 {[%clk 0:00:06.3]} 46... Bxe4 {[%clk 0:00:12.8]} 47. Rxh5
{[%clk 0:00:05.9]} 47... Rg6# {[%clk 0:00:09.6]} 0-1

[Event "*** Titled Tuesday Blitz"]
[Site "Chess.com"]
[Date "2020.03.03"]
[Round "9"]
[White "ChessWarrior7197"]
[Black "Sanan_Sjugirov"]
[Result "1-0"]
[WhiteElo "2922"]
[BlackElo "2842"]
[TimeControl "180+1"]
[EndTime "10:44:04 PST"]
[Termination "ChessWarrior7197 won by resignation"]

1. e4 {[%clk 0:03:00.9]} 1... g6 {[%clk 0:02:56.5]} 2. d4 {[%clk 0:03:00]} 2...
Bg7 {[%clk 0:02:56.8]} 3. Nf3 {[%clk 0:02:59.2]} 3... d6 {[%clk 0:02:54.4]} 4.
Be2 {[%clk 0:02:59]} 4... Nf6 {[%clk 0:02:53.6]} 5. Nc3 {[%clk 0:02:58.8]} 5...
O-O {[%clk 0:02:53.3]} 6. O-O {[%clk 0:02:59.1]} 6... a6 {[%clk 0:02:53.6]} 7.
a4 {[%clk 0:02:58.3]} 7... Nc6 {[%clk 0:02:53.6]} 8. d5 {[%clk 0:02:58.2]} 8...
Nb4 {[%clk 0:02:53.2]} 9. Nd4 {[%clk 0:02:50.6]} 9... c5 {[%clk 0:02:48]} 10.
Nf3 {[%clk 0:02:45.8]} 10... e6 {[%clk 0:02:42.1]} 11. dxe6 {[%clk 0:02:41.1]}
11... Bxe6 {[%clk 0:02:41.7]} 12. Bg5 {[%clk 0:02:38]} 12... h6 {[%clk
0:02:38.1]} 13. Bh4 {[%clk 0:02:36]} 13... Re8 {[%clk 0:02:22]} 14. Re1 {[%clk
0:02:10.5]} 14... Qc7 {[%clk 0:01:46.9]} 15. Qc1 {[%clk 0:02:08.6]} 15... Nh5
{[%clk 0:01:38.3]} 16. Rd1 {[%clk 0:01:56.9]} 16... g5 {[%clk 0:01:19.6]} 17.
Bg3 {[%clk 0:01:48.9]} 17... Nxg3 {[%clk 0:01:19]} 18. hxg3 {[%clk 0:01:49.8]}
18... Rad8 {[%clk 0:01:15.6]} 19. Ra3 {[%clk 0:01:33]} 19... Qe7 {[%clk
0:01:10.6]} 20. Bf1 {[%clk 0:01:30.7]} 20... Qf6 {[%clk 0:00:54.4]} 21. Nd2
{[%clk 0:01:15.7]} 21... Bg4 {[%clk 0:00:44.3]} 22. Re1 {[%clk 0:01:06.5]} 22...
d5 {[%clk 0:00:43.2]} 23. Nxd5 {[%clk 0:01:00.8]} 23... Qxb2 {[%clk 0:00:27.4]}
24. Qxb2 {[%clk 0:00:44.6]} 24... Bxb2 {[%clk 0:00:28.3]} 25. Rb3 {[%clk
0:00:44.7]} 25... Bg7 {[%clk 0:00:19.8]} 26. Reb1 {[%clk 0:00:37.6]} 26... Nxd5
{[%clk 0:00:17.1]} 27. exd5 {[%clk 0:00:38.5]} 27... Rxd5 {[%clk 0:00:17.4]} 28.
Nc4 {[%clk 0:00:39.1]} 28... Be6 {[%clk 0:00:12.5]} 29. Rxb7 {[%clk 0:00:38.2]}
29... Red8 {[%clk 0:00:12.4]} 30. Rb8 {[%clk 0:00:37.1]} 30... Bf6 {[%clk
0:00:08.9]} 31. Bd3 {[%clk 0:00:35.5]} 31... Kg7 {[%clk 0:00:08.1]} 32. Rxd8
{[%clk 0:00:34.7]} 32... Rxd8 {[%clk 0:00:09]} 33. Ne3 {[%clk 0:00:30.2]} 33...
Rd4 {[%clk 0:00:06.7]} 34. Bxa6 {[%clk 0:00:26]} 34... Rxa4 {[%clk 0:00:06.6]}
35. Bd3 {[%clk 0:00:26.3]} 35... c4 {[%clk 0:00:05.8]} 36. Bf5 {[%clk
0:00:25.2]} 36... Bd4 {[%clk 0:00:02.5]} 37. Rb7 {[%clk 0:00:22.6]} 37... Kf6
{[%clk 0:00:02.2]} 38. Bxe6 {[%clk 0:00:22.8]} 38... fxe6 {[%clk 0:00:03.1]} 39.
Ng4+ {[%clk 0:00:22.6]} 39... Kg6 {[%clk 0:00:03.5]} 40. Rd7 {[%clk 0:00:19.3]}
40... c3 {[%clk 0:00:03.5]} 41. Rd6 {[%clk 0:00:18.7]} 41... h5 {[%clk
0:00:03.8]} 42. Ne3 {[%clk 0:00:17.7]} 42... Bxe3 {[%clk 0:00:04]} 43. Rxe6+
{[%clk 0:00:18.1]} 43... Kf5 {[%clk 0:00:04.1]} 44. Rxe3 {[%clk 0:00:19]} 44...
Rc4 {[%clk 0:00:04.5]} 45. f3 {[%clk 0:00:19.2]} 45... g4 {[%clk 0:00:04.5]} 46.
Kf2 {[%clk 0:00:19.3]} 46... Rc6 {[%clk 0:00:03.2]} 47. Rd3 {[%clk 0:00:19.1]}
47... Ke5 {[%clk 0:00:02.7]} 48. Ke3 {[%clk 0:00:18.7]} 48... Rc7 {[%clk
0:00:02.3]} 49. f4+ {[%clk 0:00:19.1]} 49... Kf5 {[%clk 0:00:02.8]} 50. Rd5+
{[%clk 0:00:19.1]} 50... Kf6 {[%clk 0:00:03.7]} 51. Rxh5 {[%clk 0:00:19.1]}
51... Re7+ {[%clk 0:00:04]} 52. Kd3 {[%clk 0:00:18.8]} 52... Re1 {[%clk
0:00:04.6]} 53. Rg5 {[%clk 0:00:18.4]} 1-0

[Event "*** Titled Tuesday Blitz"]
[Site "Chess.com"]
[Date "2020.03.03"]
[Round "9"]
[White "Alopekos"]
[Black "Irishchessman16"]
[Result "1-0"]
[WhiteElo "2437"]
[BlackElo "2204"]
[TimeControl "180+1"]
[EndTime "10:44:12 PST"]
[Termination "Alopekos won by resignation"]

1. d4 {[%clk 0:03:00.9]} 1... Nf6 {[%clk 0:02:51.8]} 2. c4 {[%clk 0:02:59.1]}
2... e6 {[%clk 0:02:51.3]} 3. Nf3 {[%clk 0:02:57.6]} 3... b6 {[%clk 0:02:50.3]}
4. e3 {[%clk 0:02:57.6]} 4... Bb7 {[%clk 0:02:48.3]} 5. Bd3 {[%clk 0:02:58.1]}
5... d5 {[%clk 0:02:48.1]} 6. O-O {[%clk 0:02:58]} 6... Bd6 {[%clk 0:02:45.6]}
7. b3 {[%clk 0:02:57.8]} 7... O-O {[%clk 0:02:44.5]} 8. Bb2 {[%clk 0:02:58.2]}
8... Nbd7 {[%clk 0:02:41.2]} 9. Ne5 {[%clk 0:02:55.2]} 9... c5 {[%clk
0:02:34.7]} 10. f4 {[%clk 0:02:53.9]} 10... cxd4 {[%clk 0:02:34.7]} 11. exd4
{[%clk 0:02:52.9]} 11... Ne4 {[%clk 0:02:34.4]} 12. Nc3 {[%clk 0:02:40.6]} 12...
f6 {[%clk 0:02:33.4]} 13. Nxd7 {[%clk 0:02:34.4]} 13... Qxd7 {[%clk 0:02:32.7]}
14. Qe2 {[%clk 0:02:24.8]} 14... Nxc3 {[%clk 0:02:25.9]} 15. Bxc3 {[%clk
0:02:25.7]} 15... Rae8 {[%clk 0:02:25.6]} 16. Rae1 {[%clk 0:02:23.1]} 16... Qc7
{[%clk 0:02:20.1]} 17. f5 {[%clk 0:01:57.4]} 17... Bxh2+ {[%clk 0:02:10.7]} 18.
Kh1 {[%clk 0:01:56]} 18... e5 {[%clk 0:02:11.2]} 19. Bb4 {[%clk 0:01:45.7]}
19... e4 {[%clk 0:02:05.3]} 20. Bxf8 {[%clk 0:01:43]} 20... Rxf8 {[%clk
0:02:05.2]} 21. Bb1 {[%clk 0:01:37.8]} 21... Bg3 {[%clk 0:02:04.3]} 22. Rd1
{[%clk 0:01:34.9]} 22... Ba6 {[%clk 0:02:02.3]} 23. Qg4 {[%clk 0:01:30.5]} 23...
dxc4 {[%clk 0:01:58.2]} 24. Bxe4 {[%clk 0:01:10.6]} 24... cxb3 {[%clk
0:01:53.3]} 25. Bd5+ {[%clk 0:01:09.3]} 25... Kh8 {[%clk 0:01:52.5]} 26. Rf3
{[%clk 0:01:07.4]} 26... Be2 {[%clk 0:01:51]} 27. Qxg3 {[%clk 0:00:56.4]} 27...
Qxg3 {[%clk 0:01:49.4]} 28. Rxg3 {[%clk 0:00:55.4]} 28... Bxd1 {[%clk
0:01:49.9]} 29. Bxb3 {[%clk 0:00:54.9]} 29... Bxb3 {[%clk 0:01:41.9]} 30. Rxb3
{[%clk 0:00:55.8]} 30... Rd8 {[%clk 0:01:41.8]} 31. Rd3 {[%clk 0:00:54.8]} 31...
Rd5 {[%clk 0:01:40.2]} 32. g4 {[%clk 0:00:53.7]} 32... h5 {[%clk 0:01:40.2]} 33.
gxh5 {[%clk 0:00:20.7]} 33... Kg8 {[%clk 0:01:38]} 34. Kg2 {[%clk 0:00:18.9]}
34... Rxf5 {[%clk 0:01:33.4]} 35. d5 {[%clk 0:00:18.1]} 35... Kf8 {[%clk
0:01:32.5]} 36. d6 {[%clk 0:00:18.1]} 36... Ke8 {[%clk 0:01:32.5]} 37. Ra3
{[%clk 0:00:16.6]} 37... Ra5 {[%clk 0:01:29.6]} 38. Rg3 {[%clk 0:00:12]} 38...
Rxa2+ {[%clk 0:01:28.2]} 39. Kh3 {[%clk 0:00:12.5]} 39... Ra5 {[%clk 0:01:17.7]}
40. Kh4 {[%clk 0:00:04.3]} 40... Ra4+ {[%clk 0:00:31.3]} 41. Kh3 {[%clk
0:00:03.4]} 41... Rd4 {[%clk 0:00:23.6]} 42. Rxg7 {[%clk 0:00:03]} 42... Rxd6
{[%clk 0:00:23.6]} 43. h6 {[%clk 0:00:03.2]} 43... f5 {[%clk 0:00:20.8]} 44. h7
{[%clk 0:00:02.6]} 44... Rh6+ {[%clk 0:00:20.9]} 45. Kg3 {[%clk 0:00:02.6]}
45... Kf8 {[%clk 0:00:21.1]} 46. Rg8+ {[%clk 0:00:02.3]} 46... Kf7 {[%clk
0:00:21.3]} 47. h8=Q {[%clk 0:00:03.2]} 47... Rh3+ {[%clk 0:00:18.6]} 48. Qxh3
{[%clk 0:00:02.5]} 48... Kxg8 {[%clk 0:00:18]} 49. Qxf5 {[%clk 0:00:02.6]} 49...
b5 {[%clk 0:00:18.9]} 50. Qxb5 {[%clk 0:00:02.4]} 50... Kg7 {[%clk 0:00:19.3]}
51. Qa6 {[%clk 0:00:03.3]} 51... Kf7 {[%clk 0:00:18.7]} 52. Qxa7+ {[%clk
0:00:04.2]} 52... Ke6 {[%clk 0:00:19.6]} 53. Kf4 {[%clk 0:00:05.1]} 53... Kd5
{[%clk 0:00:20.5]} 54. Qa6 {[%clk 0:00:05.5]} 1-0

[Event "*** Titled Tuesday Blitz"]
[Site "Chess.com"]
[Date "2020.03.03"]
[Round "9"]
[White "silverback96"]
[Black "yoolund"]
[Result "1-0"]
[WhiteElo "2011"]
[BlackElo "2577"]
[TimeControl "180+1"]
[EndTime "10:44:21 PST"]
[Termination "silverback96 won by resignation"]

1. g3 {[%clk 0:03:00.9]} 1... g6 {[%clk 0:02:56.4]} 2. Bg2 {[%clk 0:03:01.8]}
2... Bg7 {[%clk 0:02:54.3]} 3. d4 {[%clk 0:03:01]} 3... d6 {[%clk 0:02:53.7]} 4.
Nf3 {[%clk 0:03:00.4]} 4... Nf6 {[%clk 0:02:53.7]} 5. O-O {[%clk 0:03:01.2]}
5... O-O {[%clk 0:02:53.4]} 6. Re1 {[%clk 0:02:59.8]} 6... Nc6 {[%clk
0:02:53.1]} 7. e4 {[%clk 0:02:59.3]} 7... e5 {[%clk 0:02:52.5]} 8. Nc3 {[%clk
0:02:59.7]} 8... Bg4 {[%clk 0:02:41.5]} 9. d5 {[%clk 0:02:52.3]} 9... Nd4 {[%clk
0:02:39.9]} 10. h3 {[%clk 0:02:52.1]} 10... Nxf3+ {[%clk 0:02:38.3]} 11. Bxf3
{[%clk 0:02:53]} 11... Bxh3 {[%clk 0:02:38.5]} 12. Bg5 {[%clk 0:02:41.6]} 12...
Bd7 {[%clk 0:02:35.5]} 13. Qd2 {[%clk 0:02:39.2]} 13... Qc8 {[%clk 0:02:14.5]}
14. a4 {[%clk 0:02:28.1]} 14... a6 {[%clk 0:02:11.3]} 15. a5 {[%clk 0:02:25.2]}
15... Ng4 {[%clk 0:02:09.5]} 16. Kg2 {[%clk 0:02:17.3]} 16... f6 {[%clk
0:02:03.1]} 17. Be3 {[%clk 0:02:12.6]} 17... Nxe3+ {[%clk 0:02:02.1]} 18. Qxe3
{[%clk 0:02:11.6]} 18... Bh3+ {[%clk 0:02:01.5]} 19. Kh2 {[%clk 0:02:10.1]}
19... f5 {[%clk 0:02:02.1]} 20. exf5 {[%clk 0:01:56.6]} 20... Qxf5 {[%clk
0:01:44.4]} 21. Be4 {[%clk 0:01:56.1]} 21... Qh5 {[%clk 0:01:42.8]} 22. Rh1
{[%clk 0:01:44.4]} 22... Bh6 {[%clk 0:01:05.3]} 23. Qe1 {[%clk 0:01:31.3]} 23...
Bg4+ {[%clk 0:00:19.9]} 24. Kg2 {[%clk 0:01:18.6]} 24... Qg5 {[%clk 0:00:19.1]}
25. f3 {[%clk 0:01:13.7]} 25... Bf5 {[%clk 0:00:17.1]} 26. Ra4 {[%clk
0:01:07.4]} 26... Bg7 {[%clk 0:00:16.5]} 27. Bxf5 {[%clk 0:01:04.6]} 27... gxf5
{[%clk 0:00:14]} 28. Rah4 {[%clk 0:01:05.5]} 28... h6 {[%clk 0:00:14]} 29. Rh5
{[%clk 0:00:57.8]} 29... Qg6 {[%clk 0:00:13.3]} 30. Qd2 {[%clk 0:00:53.8]} 30...
e4 {[%clk 0:00:07.2]} 31. Ne2 {[%clk 0:00:47.2]} 31... exf3+ {[%clk 0:00:04.8]}
32. Kxf3 {[%clk 0:00:48.1]} 32... Qg4+ {[%clk 0:00:04.2]} 33. Kg2 {[%clk
0:00:48.7]} 33... Rae8 {[%clk 0:00:03.9]} 34. Nf4 {[%clk 0:00:47.3]} 34... Re4
{[%clk 0:00:01.7]} 35. R1h4 {[%clk 0:00:40.5]} 35... Rxf4 {[%clk 0:00:01.7]} 36.
Qxf4 {[%clk 0:00:27.1]} 36... Qxf4 {[%clk 0:00:01.2]} 37. Rxf4 {[%clk
0:00:26.2]} 37... Kf7 {[%clk 0:00:02]} 38. Rfxf5+ {[%clk 0:00:24]} 38... Ke7
{[%clk 0:00:02.1]} 39. Rxf8 {[%clk 0:00:24.9]} 39... Kxf8 {[%clk 0:00:03]} 40.
c3 {[%clk 0:00:23.8]} 40... Kf7 {[%clk 0:00:03.2]} 41. Kf3 {[%clk 0:00:24.1]}
41... Kg6 {[%clk 0:00:04.1]} 42. g4 {[%clk 0:00:24]} 42... Be5 {[%clk 0:00:05]}
43. Ke4 {[%clk 0:00:24.2]} 43... c6 {[%clk 0:00:05.4]} 44. dxc6 {[%clk
0:00:18.5]} 44... bxc6 {[%clk 0:00:06.3]} 45. Kd3 {[%clk 0:00:15.6]} 45... Bf6
{[%clk 0:00:07.2]} 46. Kc4 {[%clk 0:00:14.4]} 46... d5+ {[%clk 0:00:06.9]} 47.
Kc5 {[%clk 0:00:13.9]} 47... Bd8 {[%clk 0:00:07.8]} 48. Kxc6 {[%clk 0:00:13.7]}
48... Bxa5 {[%clk 0:00:07.4]} 49. Kb7 {[%clk 0:00:13.7]} 49... Bd8 {[%clk
0:00:03.8]} 50. Rxd5 {[%clk 0:00:14.1]} 1-0

[Event "*** Titled Tuesday Blitz"]
[Site "Chess.com"]
[Date "2020.03.03"]
[Round "9"]
[White "rogapa"]
[Black "vugarrasulov"]
[Result "0-1"]
[WhiteElo "2757"]
[BlackElo "2897"]
[TimeControl "180+1"]
[EndTime "10:44:24 PST"]
[Termination "vugarrasulov won on time"]

1. e4 {[%clk 0:03:00.1]} 1... c5 {[%clk 0:03:00]} 2. Nf3 {[%clk 0:03:00]} 2...
d6 {[%clk 0:03:00.5]} 3. d4 {[%clk 0:03:00.5]} 3... cxd4 {[%clk 0:03:01.4]} 4.
Nxd4 {[%clk 0:03:01.4]} 4... Nf6 {[%clk 0:03:02]} 5. Nc3 {[%clk 0:03:01.7]} 5...
a6 {[%clk 0:03:02.6]} 6. Bg5 {[%clk 0:03:02]} 6... Nbd7 {[%clk 0:03:00.7]} 7.
Bc4 {[%clk 0:03:01.4]} 7... Qa5 {[%clk 0:02:59.1]} 8. Bxf6 {[%clk 0:02:58.7]}
8... Nxf6 {[%clk 0:02:58.5]} 9. O-O {[%clk 0:02:59.5]} 9... e6 {[%clk
0:02:55.7]} 10. Bb3 {[%clk 0:02:59.2]} 10... Be7 {[%clk 0:02:55.3]} 11. f4
{[%clk 0:02:59.4]} 11... O-O {[%clk 0:02:53.9]} 12. f5 {[%clk 0:02:59.4]} 12...
Qe5 {[%clk 0:02:48.4]} 13. fxe6 {[%clk 0:02:33.3]} 13... Nxe4 {[%clk 0:02:28.1]}
14. exf7+ {[%clk 0:02:22.8]} 14... Kh8 {[%clk 0:02:27.8]} 15. Nxe4 {[%clk
0:02:22.1]} 15... Qxe4 {[%clk 0:02:27.9]} 16. Re1 {[%clk 0:02:15.9]} 16... Qh4
{[%clk 0:02:28.1]} 17. g3 {[%clk 0:02:12.3]} 17... Qg5 {[%clk 0:02:18.8]} 18.
Nf3 {[%clk 0:01:35]} 18... Qf6 {[%clk 0:02:18.4]} 19. Qe2 {[%clk 0:01:33]} 19...
Bd8 {[%clk 0:02:13.8]} 20. Qe8 {[%clk 0:01:17.7]} 20... Bb6+ {[%clk 0:02:13.2]}
21. Kg2 {[%clk 0:01:13.1]} 21... Bg4 {[%clk 0:02:10.6]} 22. Qe4 {[%clk
0:00:50.6]} 22... h5 {[%clk 0:01:54.6]} 23. Rf1 {[%clk 0:00:48.9]} 23... Bf5
{[%clk 0:01:31.4]} 24. Qf4 {[%clk 0:00:48.5]} 24... d5 {[%clk 0:01:21.5]} 25.
Bxd5 {[%clk 0:00:47.4]} 25... Rad8 {[%clk 0:01:21.4]} 26. c4 {[%clk 0:00:39.5]}
26... Qxb2+ {[%clk 0:01:18.9]} 27. Qd2 {[%clk 0:00:29.5]} 27... Qxd2+ {[%clk
0:01:06.3]} 28. Nxd2 {[%clk 0:00:30.4]} 28... Bd3 {[%clk 0:01:06.8]} 29. Rf3
{[%clk 0:00:23]} 29... Be2 {[%clk 0:01:02.2]} 30. Rf5 {[%clk 0:00:17.1]} 30...
g6 {[%clk 0:00:59.8]} 31. Re5 {[%clk 0:00:15.8]} 31... Bd4 {[%clk 0:00:55.6]}
32. Rxe2 {[%clk 0:00:15.2]} 32... Bxa1 {[%clk 0:00:56.2]} 33. Re7 {[%clk
0:00:12.5]} 33... b5 {[%clk 0:00:53.5]} 34. Ne4 {[%clk 0:00:11.8]} 34... Kg7
{[%clk 0:00:35.2]} 35. Kf3 {[%clk 0:00:10.3]} 35... Rxd5 {[%clk 0:00:30]} 36.
cxd5 {[%clk 0:00:10.2]} 36... Rxf7+ {[%clk 0:00:30.6]} 37. Rxf7+ {[%clk
0:00:10.3]} 37... Kxf7 {[%clk 0:00:31.5]} 38. Kf4 {[%clk 0:00:03.2]} 38... Bb2
{[%clk 0:00:25.1]} 39. Ng5+ {[%clk 0:00:03.2]} 39... Ke7 {[%clk 0:00:23.7]} 40.
Nf3 {[%clk 0:00:04.1]} 40... Kd6 {[%clk 0:00:21.4]} 41. Ke4 {[%clk 0:00:05]}
41... a5 {[%clk 0:00:21.2]} 42. h3 {[%clk 0:00:05.4]} 42... a4 {[%clk 0:00:20]}
43. Nd2 {[%clk 0:00:05.4]} 43... Bc3 {[%clk 0:00:18.8]} 44. Nf3 {[%clk
0:00:04.4]} 44... Kc5 {[%clk 0:00:18.9]} 45. g4 {[%clk 0:00:04.5]} 45... hxg4
{[%clk 0:00:18.7]} 46. hxg4 {[%clk 0:00:05.4]} 46... b4 {[%clk 0:00:19.5]} 47.
Nh4 {[%clk 0:00:04.1]} 47... b3 {[%clk 0:00:18.5]} 48. axb3 {[%clk 0:00:04]}
48... a3 {[%clk 0:00:19.2]} 49. d6 {[%clk 0:00:03.6]} 49... Kxd6 {[%clk
0:00:17.1]} 50. Nxg6 {[%clk 0:00:02.7]} 50... a2 {[%clk 0:00:17.5]} 0-1